lending/lending_fUSD_20251106
["ID","MTS","AMOUNT","RATE_DAILY","PERIOD"]
[393282986,1762424719280,9143.11618976,9e-05,2]
[393282987,1762424724830,856.89381024,0.000108,2]
[393282988,1762424724854,162.23368696,0.000108,2]
[393282989,1762424735050,9122.86870052,9e-05,2]
[393282990,1762424760000,532.25866244,8e-05,2]
[393282991,1762424785153,182.64895008,0.00015021,2]
[393282992,1762424785180,116.27249403,0.00015021,2]
[393282993,1762424812858,5000.00775352,0.000162,5]
[393283001,1762424863607,2192.93606755,0.00013,2]
[393283002,1762424870073,7690.80143842,0.00015,2]
[393283003,1762424870097,10000.01,0.00015,2]
[393283004,1762424870121,10000.01,0.00015,2]
[393283005,1762424870145,10000.01,0.00015,2]
[393283006,1762424870170,10000.01,0.00015,2]
[393283007,1762424870195,10000.01,0.00015,2]
[393283008,1762424870223,10000.01,0.00015,2]
[393283009,1762424870246,10000.01,0.00015,2]
[393283010,1762424870274,10000.01,0.00015,2]
[393283011,1762424870297,10000.01,0.00015,2]
[393283012,1762424870989,-213.54204674,0.00015,2]
[393283013,1762424873780,-230.40058126,0.00015,2]
[393283014,1762424880613,-379.41805113,0.00015,2]
[393283015,1762424881348,-300.0,0.00014999,2]
[393283016,1762424881364,-5704.81248689,0.00015,2]
[393283017,1762424881503,-10000.01,0.00015,2]
[393283018,1762424881766,-10000.01,0.00015,2]
[393283019,1762424881919,-10000.01,0.00015,2]
[393283020,1762424882054,-10000.01,0.00015,2]
[393283021,1762424882820,-10000.01,0.00015,2]
[393283022,1762424883788,-10000.01,0.00015,2]
[393283023,1762424883913,-10000.01,0.00015,2]
[393283024,1762424884032,-10000.01,0.00015,2]
[393283025,1762424884151,-10000.01,0.00015,2]
[393283026,1762424884417,-159.0619941,0.00015,2]
[393283027,1762424889028,816.63879026,0.00015016,2]
[393283029,1762424907655,265.9979551,0.000107,2]
[393283030,1762424915061,9734.0120449,0.0001,2]
[393283031,1762424915087,3295.05169448,0.0001,2]
[393283032,1762424918008,957.67846939,0.00013699,2]
[393283033,1762424924793,30000.0,0.00038708,30]
[393283034,1762424939704,5747.27983613,0.0001504,2]
[393283035,1762424939726,1215.44700087,0.0001504,2]
[393283049,1762425032058,-4201.03,0.00015116,2]
[393283050,1762425032067,-250.0,0.00015118,2]
[393283051,1762425032077,-195.0,0.0001512,2]
[393283052,1762425032086,-206.93,0.00015135,2]
[393283053,1762425032096,-500.0,0.00015287,2]
[393283054,1762425032106,-486.60131354,0.00015287,2]
[393283055,1762425032115,-300.0,0.00015287,2]
[393283056,1762425032124,-1200.0,0.00015287,2]
[393283057,1762425032133,-5107.87,0.00015288,2]
[393283058,1762425032142,-150.0,0.00015407,2]
[393283059,1762425032152,-2388.96491481,0.00015573,2]
[393283060,1762425032162,-300.0,0.00015573,2]
[393283061,1762425032171,-5802.67,0.00015574,2]
[393283062,1762425032180,-6073.89033888,0.00015574,2]
[393283063,1762425032195,-1285.3613989,0.00015574,2]
[393283092,1762425037913,-5169.08776389,0.00015574,2]
[393283093,1762425037924,-3158.5,0.00015574,2]
[393283094,1762425037935,-1006.2910037,0.00015574,2]
[393283095,1762425037946,-2625.0,0.00015574,2]
[393283096,1762425037958,-3900.0,0.00015574,2]
[393283097,1762425038126,-7775.72454643,0.00015574,2]
[393283143,1762425040102,-25979.90739786,0.00015574,2]
[393283144,1762425040112,-483.91459128,0.00015797,2]
[393283145,1762425040121,-2374.8,0.00015798,2]
[393283146,1762425040131,-9999.99,0.00015798,2]
[393283147,1762425040140,-999.99,0.00015798,2]
[393283148,1762425040149,-150.99,0.00015798,2]
[393283149,1762425040159,-4084.19,0.00015798,2]
[393283150,1762425040168,-9999.99,0.00015798,2]
[393283151,1762425040179,-5505.92,0.00015798,2]
[393283152,1762425040188,-2500.0,0.00015799,2]
[393283153,1762425040197,-317.69101155,0.00015799,2]
[393283154,1762425040206,-14126.85135647,0.00015799,2]
[393283155,1762425040215,-4502.07831903,0.00015799,2]
[393283156,1762425040224,-5000.0,0.000158,2]
[393283157,1762425040233,-500.0,0.00015873,2]
[393283158,1762425040243,-1000.0,0.00015888,2]
[393283159,1762425040253,-570.69,0.00015889,2]
[393283160,1762425040262,-151.0,0.00015889,2]
[393283161,1762425040272,-151.0,0.00015889,2]
[393283162,1762425040282,-151.0,0.00015889,2]
[393283163,1762425040291,-151.0,0.00015889,2]
[393283164,1762425040301,-151.0,0.00015889,2]
[393283165,1762425040311,-151.0,0.00015889,2]
[393283166,1762425040320,-151.0,0.00015889,2]
[393283167,1762425040331,-151.0,0.00015889,2]
[393283168,1762425040341,-151.0,0.00015889,2]
[393283169,1762425040351,-151.0,0.00015889,2]
[393283170,1762425040361,-151.0,0.00015889,2]
[393283171,1762425040574,-151.0,0.00015889,2]
[393283172,1762425040584,-151.0,0.00015889,2]
[393283173,1762425040594,-257.54438633,0.00015889,2]
[393283174,1762425040604,-151.0,0.00015889,2]
[393283175,1762425040613,-151.0,0.00015889,2]
[393283176,1762425040623,-151.0,0.00015889,2]
[393283177,1762425040632,-151.0,0.00015889,2]
[393283178,1762425040641,-151.0,0.00015889,2]
[393283179,1762425040650,-151.0,0.00015889,2]
[393283180,1762425040659,-151.0,0.00015889,2]
[393283181,1762425040669,-151.0,0.00015889,2]
[393283182,1762425040678,-151.0,0.00015889,2]
[393283183,1762425040687,-151.0,0.00015889,2]
[393283184,1762425040697,-151.0,0.00015889,2]
[393283185,1762425040706,-151.0,0.00015889,2]
[393283186,1762425040715,-151.0,0.00015889,2]
[393283187,1762425040725,-2081.35,0.00015898,2]
[393283188,1762425040734,-500.0,0.00015898,2]
[393283189,1762425040743,-500.0,0.00015898,2]
[393283190,1762425040753,-500.0,0.00015898,2]
[393283191,1762425040763,-500.0,0.00015898,2]
[393283192,1762425040772,-672.41,0.00015898,2]
[393283193,1762425040781,-163.71623282,0.00015898,2]
[393283194,1762425040790,-602.23460936,0.00015898,2]
[393283195,1762425040800,-770.42,0.00015898,2]
[393283196,1762425040809,-500.0,0.00015898,2]
[393283197,1762425040819,-500.0,0.00015898,2]
[393283198,1762425040828,-500.0,0.00015898,2]
[393283199,1762425040838,-500.0,0.00015898,2]
[393283200,1762425040847,-500.0,0.00015898,2]
[393283201,1762425040857,-500.0,0.00015898,2]
[393283202,1762425040866,-500.0,0.00015898,2]
[393283203,1762425040875,-379.02356425,0.00015898,2]
[393283204,1762425040884,-500.0,0.00015898,2]
[393283205,1762425040893,-500.0,0.00015898,2]
[393283206,1762425040902,-500.0,0.00015898,2]
[393283207,1762425040911,-6894.0304,0.00015899,2]
[393283208,1762425040921,-420000.0,0.00015899,2]
[393283209,1762425040931,-1000.0,0.00015899,2]
[393283210,1762425040940,-770.42,0.00015899,2]
[393283211,1762425040950,-500.0,0.00015899,2]
[393283212,1762425040959,-2744.9989,0.000159,2]
[393283213,1762425040968,-500.0,0.00015999,2]
[393283214,1762425040978,-400.36653205,0.00015999,2]
[393283215,1762425040987,-317.69101148,0.00016032,2]
[393283216,1762425040996,-14126.85135641,0.00016032,2]
[393283217,1762425041006,-4502.07831896,0.00016032,2]
[393283218,1762425041016,-500.0,0.00016115,2]
[393283219,1762425041026,-500.0,0.00016115,2]
[393283220,1762425041035,-500.0,0.00016115,2]
[393283221,1762425041045,-509.6544265,0.00016115,2]
[393283222,1762425041054,-672.41,0.00016115,2]
[393283223,1762425041064,-500.0,0.00016115,2]
[393283224,1762425041074,-500.0,0.00016115,2]
[393283225,1762425041083,-500.0,0.00016115,2]
[393283226,1762425041092,-500.0,0.00016115,2]
[393283227,1762425041101,-7480.64,0.00016116,2]
[393283228,1762425041111,-3331.13295228,0.00016131,2]
[393283229,1762425041121,-403.9,0.00016158,2]
[393283230,1762425041130,-570.69,0.00016163,2]
[393283231,1762425041139,-500.0,0.00016164,2]
[393283232,1762425041149,-317.69101148,0.00016266,2]
[393283233,1762425041158,-14126.85135641,0.00016266,2]
[393283234,1762425041167,-4502.07831896,0.00016266,2]
[393283235,1762425041176,-770.42,0.00016269,2]
[393283236,1762425041185,-500.0,0.00016269,2]
[393283237,1762425041195,-500.0,0.00016269,2]
[393283238,1762425041204,-208901.75,0.0001627,2]
[393283239,1762425041215,-500.0,0.00016273,2]
[393283240,1762425041224,-500.0,0.00016273,2]
[393283241,1762425041233,-24872.04146655,0.00016294,2]
[393283242,1762425041243,-879.97006781,0.00016399,2]
[393283243,1762425041261,-2081.35,0.00016437,2]
[393283244,1762425041272,-570.69,0.00016437,2]
[393283245,1762425041282,-500.0,0.00016438,2]
[393283246,1762425041292,-500.0,0.00016438,2]
[393283247,1762425041302,-500.0,0.00016438,2]
[393283248,1762425041312,-287.99296913,0.00016438,2]
[393283249,1762425041322,-500.0,0.00016438,2]
[393283250,1762425041333,-500.0,0.00016438,2]
[393283251,1762425041343,-500.0,0.00016438,2]
[393283252,1762425041353,-500.0,0.00016438,2]
[393283253,1762425041363,-2482.52,0.00016438,2]
[393283254,1762425041373,-501.13567703,0.00016438,2]
[393283255,1762425041383,-163.34,0.0001644,2]
[393283256,1762425041393,-163.34,0.0001644,2]
[393283257,1762425041405,-150.0,0.00016447,2]
[393283258,1762425041414,-150.0,0.00016447,2]
[393283259,1762425041424,-152.08698658,0.00016447,2]
[393283260,1762425041433,-150.0,0.00016447,2]
[393283261,1762425041444,-599.0,0.00016447,2]
[393283262,1762425041454,-500.0,0.00016447,2]
[393283263,1762425041463,-150.0,0.00016447,2]
[393283264,1762425041473,-150.0,0.00016447,2]
[393283265,1762425041484,-500.0,0.00016447,2]
[393283266,1762425041493,-154.15552868,0.00016447,2]
[393283267,1762425041502,-500.0,0.00016447,2]
[393283268,1762425041512,-150.0,0.00016447,2]
[393283269,1762425041521,-150.0,0.00016447,2]
[393283270,1762425041530,-500.0,0.00016447,2]
[393283271,1762425041539,-150.0,0.00016447,2]
[393283272,1762425041550,-500.0,0.00016447,2]
[393283273,1762425041559,-500.0,0.00016447,2]
[393283274,1762425041568,-500.0,0.00016447,2]
[393283275,1762425041578,-500.0,0.00016447,2]
[393283276,1762425041587,-500.0,0.00016447,2]
[393283277,1762425041597,-150.0,0.00016447,2]
[393283278,1762425041606,-500.0,0.00016447,2]
[393283279,1762425041615,-500.0,0.00016447,2]
[393283280,1762425041624,-500.0,0.00016447,2]
[393283281,1762425041634,-500.0,0.00016447,2]
[393283282,1762425041647,-408.3599179,0.00016447,2]
[393283283,1762425041658,-500.0,0.00016447,2]
[393283284,1762425041669,-300.0,0.00016447,2]
[393283285,1762425041678,-176.21,0.0001646,2]
[393283286,1762425041688,-3261.29863331,0.00016476,2]
[393283287,1762425041698,-368.7054009,0.00016499,2]
[393283288,1762425041707,-672.41,0.00016499,2]
[393283289,1762425041717,-500.0,0.00016499,2]
[393283290,1762425041727,-500.0,0.00016499,2]
[393283291,1762425041737,-500.0,0.00016499,2]
[393283292,1762425041746,-500.0,0.00016499,2]
[393283293,1762425041756,-500.0,0.00016499,2]
[393283294,1762425041766,-317.69101148,0.00016499,2]
[393283295,1762425041776,-14126.85135641,0.00016499,2]
[393283296,1762425041785,-4502.07831896,0.00016499,2]
[393283297,1762425041795,-15192.32989186,0.000165,2]
[393283298,1762425041805,-500.0,0.00016509,2]
[393283299,1762425041814,-500.0,0.00016509,2]
[393283300,1762425041823,-150.0,0.00016584,2]
[393283301,1762425041834,-150.0,0.00016584,2]
[393283302,1762425041844,-150.0,0.00016584,2]
[393283303,1762425041853,-599.0,0.00016584,2]
[393283304,1762425041863,-516.33548393,0.00016584,2]
[393283305,1762425041872,-150.0,0.00016584,2]
[393283306,1762425041882,-150.0,0.00016584,2]
[393283307,1762425041891,-500.0,0.00016584,2]
[393283308,1762425041901,-500.0,0.00016584,2]
[393283309,1762425041911,-150.0,0.00016584,2]
[393283310,1762425041920,-500.0,0.00016584,2]
[393283311,1762425041929,-500.0,0.00016584,2]
[393283312,1762425041939,-500.0,0.00016584,2]
[393283313,1762425041949,-500.0,0.00016584,2]
[393283314,1762425041959,-500.0,0.00016584,2]
[393283315,1762425041968,-505.03214734,0.00016584,2]
[393283316,1762425041978,-150.0,0.00016584,2]
[393283317,1762425041987,-500.0,0.00016584,2]
[393283318,1762425041996,-300.0,0.00016584,2]
[393283319,1762425042005,-200.0,0.00016627,2]
[393283320,1762425042015,-200.0,0.00016627,2]
[393283321,1762425042028,-200.0,0.00016627,2]
[393283322,1762425042038,-201.07254976,0.00016627,2]
[393283323,1762425042048,-300.0,0.00016627,2]
[393283324,1762425042058,-283.7415811,0.00016627,2]
[393283325,1762425042068,-195.0,0.00016627,2]
[393283326,1762425042077,-2500.0,0.00016627,2]
[393283327,1762425042087,-250.0,0.00016627,2]
[393283328,1762425042097,-300.0,0.00016627,2]
[393283329,1762425042106,-300.0,0.00016627,2]
[393283330,1762425042116,-300.0,0.00016627,2]
[393283331,1762425042126,-300.0,0.00016627,2]
[393283332,1762425042135,-300.0,0.00016627,2]
[393283333,1762425042145,-323.34285068,0.00016627,2]
[393283334,1762425042154,-250.0,0.00016627,2]
[393283335,1762425042163,-238.10507591,0.00016627,2]
[393283336,1762425042173,-510.0,0.00016695,2]
[393283337,1762425042182,-570.69,0.00016711,2]
[393283338,1762425042192,-150.0,0.00016721,2]
[393283339,1762425042201,-150.0,0.00016721,2]
[393283340,1762425042211,-150.0,0.00016721,2]
[393283341,1762425042220,-599.0,0.00016721,2]
[393283342,1762425042230,-150.0,0.00016721,2]
[393283343,1762425042239,-500.0,0.00016721,2]
[393283344,1762425042249,-392.08320953,0.00016721,2]
[393283345,1762425042259,-213.05879372,0.00016721,2]
[393283346,1762425042268,-500.0,0.00016721,2]
[393283347,1762425042278,-500.0,0.00016721,2]
[393283348,1762425042288,-500.0,0.00016721,2]
[393283349,1762425042297,-500.0,0.00016721,2]
[393283350,1762425042306,-251.64103016,0.00016721,2]
[393283351,1762425042316,-150.0,0.00016721,2]
[393283352,1762425042325,-500.0,0.00016721,2]
[393283353,1762425042337,-300.0,0.00016721,2]
[393283354,1762425042347,-420.0,0.00016726,2]
[393283355,1762425042357,-317.69101148,0.00016733,2]
[393283356,1762425042367,-14126.85135641,0.00016733,2]
[393283357,1762425042377,-4502.07831896,0.00016733,2]
[393283358,1762425042387,-1680.0,0.0001681,2]
[393283359,1762425042397,-1000.0,0.00016821,2]
[393283360,1762425042414,-228.39525195,0.00016858,2]
[393283361,1762425042424,-150.0,0.00016858,2]
[393283362,1762425042433,-200.0,0.00016858,2]
[393283363,1762425042443,-599.0,0.00016858,2]
[393283364,1762425042453,-150.0,0.00016858,2]
[393283365,1762425042462,-500.0,0.00016858,2]
[393283366,1762425042472,-500.0,0.00016858,2]
[393283367,1762425042483,-500.0,0.00016858,2]
[393283368,1762425042492,-500.0,0.00016858,2]
[393283369,1762425042502,-500.0,0.00016858,2]
[393283370,1762425042512,-200.84185402,0.00016858,2]
[393283371,1762425042522,-500.0,0.00016858,2]
[393283372,1762425042531,-300.0,0.00016858,2]
[393283373,1762425042541,-152.54268606,0.00016899,2]
[393283374,1762425042551,-152.00625849,0.00016899,2]
[393283375,1762425042560,-150.0,0.00016899,2]
[393283376,1762425042570,-202.37031601,0.00016899,2]
[393283377,1762425042581,-150.0,0.00016899,2]
[393283378,1762425042590,-150.0,0.00016899,2]
[393283379,1762425042599,-3593.0,0.00016916,2]
[393283380,1762425042609,-3593.0,0.00016924,2]
[393283381,1762425042618,-3593.0,0.00016945,2]
[393283382,1762425042627,-237.45497966,0.00016947,2]
[393283383,1762425042636,-317.69101148,0.00016966,2]
[393283384,1762425042645,-14126.85135641,0.00016966,2]
[393283385,1762425042655,-4502.07831896,0.00016966,2]
[393283386,1762425042664,-163.34,0.0001698,2]
[393283387,1762425042674,-360.49368471,0.0001698,2]
[393283388,1762425042683,-570.69,0.00016985,2]
[393283389,1762425042693,-2326.0,0.00016986,2]
[393283390,1762425042702,-151.0,0.00016987,2]
[393283391,1762425042712,-500.0,0.00016989,2]
[393283392,1762425042721,-185100.66572553,0.0001699,2]
[393283393,1762425042731,-150.0,0.00016995,2]
[393283394,1762425042740,-599.0,0.00016995,2]
[393283396,1762425042749,-161.37025384,0.00016995,2]
[393283397,1762425042759,-500.0,0.00016995,2]
[393283398,1762425042768,-328.38259742,0.00016995,2]
[393283399,1762425042777,-500.0,0.00016995,2]
[393283400,1762425042787,-500.0,0.00016995,2]
[393283401,1762425042799,-500.0,0.00016995,2]
[393283402,1762425042808,-600.0,0.00016995,2]
[393283403,1762425042817,-300.0,0.00016995,2]
[393283406,1762425042827,-210.67362404,0.00017,2]
[393283408,1762425042837,-250.0,0.00017,2]
[393283410,1762425042846,-2000.0,0.00017,2]
[393283412,1762425042855,-316.47,0.00017032,2]
[393283414,1762425042865,-150.0,0.00017036,2]
[393283417,1762425042874,-150.0,0.00017036,2]
[393283420,1762425042884,-358.79,0.00017049,2]
[393283421,1762425042893,-983.00459956,0.00017057,2]
[393283423,1762425042903,-1000.0,0.00017057,2]
[393283425,1762425042912,-200.54651287,0.00017132,2]
[393283427,1762425042921,-599.0,0.00017132,2]
[393283429,1762425042930,-500.0,0.00017132,2]
[393283431,1762425042940,-500.0,0.00017132,2]
[393283433,1762425042949,-500.0,0.00017132,2]
[393283438,1762425043033,-500.0,0.00017132,2]
[393283439,1762425043043,-300.0,0.00017132,2]
[393283440,1762425043053,-3593.0,0.00017164,2]
[393283441,1762425043063,-316.47,0.00017169,2]
[393283442,1762425043072,-150.0,0.00017173,2]
[393283443,1762425043081,-150.0,0.00017173,2]
[393283444,1762425043090,-358.8,0.00017186,2]
[393283445,1762425043099,-317.69101148,0.000172,2]
[393283446,1762425043108,-14126.85135641,0.000172,2]
[393283447,1762425043118,-4502.07831896,0.000172,2]
[393283448,1762425043127,-500.0,0.00017233,2]
[393283449,1762425043136,-570.71608539,0.00017259,2]
[393283450,1762425043145,-599.0,0.00017269,2]
[393283451,1762425043154,-500.0,0.00017269,2]
[393283452,1762425043165,-500.0,0.00017269,2]
[393283453,1762425043174,-500.0,0.00017269,2]
[393283454,1762425043183,-500.0,0.00017269,2]
[393283455,1762425043193,-210.67362404,0.000173,2]
[393283456,1762425043202,-316.47,0.00017306,2]
[393283457,1762425043211,-150.0,0.0001731,2]
[393283458,1762425043220,-150.0,0.0001731,2]
[393283459,1762425043229,-3532.0,0.00017349,2]
[393283460,1762425043239,-1196.23949712,0.00017368,2]
[393283461,1762425043248,-1169.62774866,0.00017383,7]
[393283462,1762425043258,-3593.0,0.0001739,2]
[393283463,1762425043267,-599.0,0.00017406,2]
[393283464,1762425043276,-500.0,0.00017406,2]
[393283465,1762425043285,-500.0,0.00017406,2]
[393283466,1762425043295,-317.69101148,0.00017433,2]
[393283467,1762425043305,-14126.85135641,0.00017433,2]
[393283468,1762425043314,-4502.07831896,0.00017433,2]
[393283469,1762425043323,-214.45499352,0.00017447,2]
[393283470,1762425043332,-150.0,0.00017447,2]
[393283471,1762425043342,-162.64913491,0.00017494,2]
[393283472,1762425043351,-477.87911524,0.00017495,2]
[393283473,1762425043360,-599.0,0.00017543,2]
[393283474,1762425043369,-500.0,0.00017543,2]
[393283475,1762425043378,-500.0,0.00017543,2]
[393283476,1762425043388,-176.6,0.00017545,2]
[393283477,1762425043398,-150.0,0.00017545,2]
[393283478,1762425043412,-150.0,0.00017545,2]
[393283479,1762425043421,-436.82,0.00017545,2]
[393283480,1762425043430,-403.9,0.00017588,2]
[393283481,1762425043439,-210.67362404,0.000176,2]
[393283482,1762425043449,-1355.25282514,0.00017605,2]
[393283483,1762425043458,-213.2608074,0.00017615,2]
[393283484,1762425043467,-820.0,0.00017623,2]
[393283485,1762425043476,-1596.0,0.00017623,2]
[393283486,1762425043487,-849.381,0.00017623,2]
[393283487,1762425043496,-1273.0,0.00017623,2]
[393283488,1762425043505,-905.0,0.00017623,2]
[393283489,1762425043516,-1188.0,0.00017623,2]
[393283490,1762425043525,-1315.0,0.00017623,2]
[393283491,1762425043534,-3423.0,0.00017623,2]
[393283492,1762425043543,-2141.0,0.00017623,2]
[393283493,1762425043552,-6658.0,0.00017623,2]
[393283494,1762425043561,-317.69101148,0.00017667,2]
[393283495,1762425043572,-14126.85135641,0.00017667,2]
[393283496,1762425043582,-4502.07831896,0.00017667,2]
[393283497,1762425043591,-207.91123044,0.00017677,2]
[393283498,1762425043600,-599.0,0.0001768,2]
[393283499,1762425043610,-500.0,0.0001768,2]
[393283500,1762425043619,-500.0,0.0001768,2]
[393283501,1762425043628,-1856.0,0.000177,2]
[393283502,1762425043637,-150.0,0.00017728,2]
[393283503,1762425043646,-1425.0,0.00017735,2]
[393283504,1762425043655,-1425.0,0.0001774,2]
[393283505,1762425043665,-1425.0,0.00017741,2]
[393283506,1762425043674,-1425.0,0.00017744,2]
[393283507,1762425043683,-1425.0,0.00017753,2]
[393283508,1762425043692,-1425.0,0.00017756,2]
[393283509,1762425043701,-152.4823511,0.00017757,2]
[393283510,1762425043710,-1425.0,0.00017758,2]
[393283511,1762425043719,-1425.0,0.0001776,2]
[393283512,1762425043728,-1425.0,0.00017765,2]
[393283513,1762425043737,-864.47534972,0.00017768,2]
[393283514,1762425043747,-1425.0,0.00017773,2]
[393283515,1762425043756,-1425.0,0.00017775,2]
[393283516,1762425043765,-1425.0,0.0001778,2]
[393283517,1762425043774,-1425.0,0.00017783,2]
[393283518,1762425043783,-1425.0,0.00017786,2]
[393283519,1762425043792,-1488.29283683,0.00017789,2]
[393283520,1762425043801,-1425.0,0.00017791,2]
[393283521,1762425043810,-1425.0,0.00017795,2]
[393283522,1762425043818,-1425.0,0.00017796,2]
[393283523,1762425043828,-17925.914755,0.000178,2]
[393283524,1762425043837,-1425.0,0.00017801,2]
[393283525,1762425043846,-480.09333812,0.00017805,2]
[393283526,1762425043855,-1425.0,0.0001781,2]
[393283527,1762425043865,-1425.0,0.00017811,2]
[393283528,1762425043875,-150.0,0.00017814,2]
[393283529,1762425043884,-599.0,0.00017817,2]
[393283530,1762425043893,-500.0,0.00017817,2]
[393283531,1762425043902,-500.0,0.00017817,2]
[393283532,1762425043911,-1425.0,0.00017817,2]
[393283533,1762425043920,-2500.0,0.00017821,3]
[393283534,1762425043929,-1425.0,0.00017825,2]
[393283535,1762425043938,-1425.0,0.00017826,2]
[393283536,1762425043947,-2500.0,0.0001783,3]
[393283537,1762425043956,-1425.0,0.0001783,2]
[393283538,1762425043965,-1425.0,0.00017832,2]
[393283539,1762425043975,-150.0,0.00017836,2]
[393283540,1762425043983,-2500.0,0.00017838,3]
[393283541,1762425043992,-213.2608074,0.00017845,2]
[393283542,1762425044001,-2500.0,0.00017847,3]
[393283543,1762425044010,-2556.571,0.00017848,2]
[393283544,1762425044019,-176.193,0.00017848,2]
[393283545,1762425044028,-200.0,0.00017855,2]
[393283546,1762425044037,-200.0,0.00017856,2]
[393283547,1762425044046,-2500.0,0.00017856,3]
[393283548,1762425044055,-1425.0,0.0001786,2]
[393283549,1762425044064,-1425.0,0.00017861,2]
[393283550,1762425044073,-2500.0,0.00017865,3]
[393283551,1762425044082,-1425.0,0.00017865,2]
[393283552,1762425044091,-1425.0,0.00017866,2]
[393283553,1762425044101,-1425.0,0.00017867,2]
[393283554,1762425044110,-425.67634842,0.00017873,2]
[393283555,1762425044119,-2500.0,0.00017874,3]
[393283556,1762425044128,-425.67634841,0.00017878,2]
[393283557,1762425044137,-1425.0,0.00017878,2]
[393283558,1762425044147,-425.67634841,0.00017882,2]
[393283559,1762425044156,-2500.0,0.00017882,3]
[393283560,1762425044165,-1425.0,0.00017886,2]
[393283561,1762425044175,-425.67634841,0.00017887,2]
[393283562,1762425044185,-1425.0,0.00017887,2]
[393283563,1762425044194,-425.67634841,0.00017891,2]
[393283564,1762425044203,-2500.0,0.00017891,3]
[393283565,1762425044213,-1425.0,0.00017893,2]
[393283566,1762425044223,-1425.0,0.00017894,2]
[393283567,1762425044232,-734.0,0.00017894,2]
[393283568,1762425044242,-1425.0,0.00017895,2]
[393283569,1762425044251,-425.67634841,0.00017896,2]
[393283570,1762425044260,-1425.0,0.00017896,2]
[393283571,1762425044270,-770.42,0.00017897,2]
[393283572,1762425044279,-517.47400377,0.00017897,2]
[393283573,1762425044288,-2500.0,0.000179,3]
[393283574,1762425044298,-425.67634841,0.000179,2]
[393283575,1762425044307,-2500.0,0.000179,3]
[393283576,1762425044316,-1229.51174083,0.000179,2]
[393283577,1762425044326,-210.67362404,0.000179,2]
[393283578,1762425044336,-317.69101148,0.000179,2]
[393283579,1762425044346,-14126.85135641,0.000179,2]
[393283580,1762425044355,-4502.07831896,0.000179,2]
[393283581,1762425044364,-177.7806462,0.000179,2]
[393283582,1762425044374,-2976.0,0.000179,2]
[393283583,1762425044385,-1425.0,0.00017901,2]
[393283584,1762425044395,-1425.0,0.00017903,2]
[393283585,1762425044408,-1425.0,0.00017906,2]
[393283586,1762425044418,-1425.0,0.00017906,2]
[393283587,1762425044428,-500.0,0.00017908,2]
[393283588,1762425044437,-1425.0,0.00017909,2]
[393283589,1762425044446,-1425.0,0.00017909,2]
[393283590,1762425044455,-1425.0,0.00017911,2]
[393283591,1762425044465,-1425.0,0.00017916,2]
[393283592,1762425044475,-1425.0,0.00017922,2]
[393283593,1762425044485,-1425.0,0.00017926,2]
[393283594,1762425044495,-672.41,0.00017929,2]
[393283595,1762425044504,-500.0,0.00017929,2]
[393283596,1762425044513,-500.0,0.00017929,2]
[393283597,1762425044523,-500.0,0.00017929,2]
[393283598,1762425044531,-500.0,0.00017929,2]
[393283599,1762425044540,-150.0,0.0001793,2]
[393283600,1762425044549,-1425.0,0.0001793,2]